fUSD/lending_fUSD_20240822
["ID","MTS","AMOUNT","RATE_DAILY","PERIOD"]
[335536267,1724316633496,-509.53144535,0.00010789,2]
[335536268,1724316633507,-515.12238787,0.00010789,2]
[335536269,1724316633516,-500.0,0.00010789,2]
[335536270,1724316633526,-505.32997911,0.00010789,2]
[335536271,1724316633535,-503.957174,0.00010789,2]
[335536272,1724316633544,-500.0,0.00010789,2]
[335536273,1724316633554,-500.0,0.00010789,2]
[335536274,1724316633564,-534.13207488,0.00010789,2]
[335536275,1724316633573,-512.68866243,0.00010789,2]
[335536276,1724316633583,-505.45798422,0.00010789,2]
[335536277,1724316633592,-466.5488281,0.00010789,2]
[335536278,1724316633601,-527.18550191,0.00010789,2]
[335536279,1724316633611,-515.01660814,0.00010789,2]
[335536280,1724316633621,-521.33150609,0.00010789,2]
[335536281,1724316633630,-514.74732607,0.00010789,2]
[335536282,1724316633640,-518.08865891,0.00010789,2]
[335536283,1724316633649,-515.17787189,0.00010789,2]
[335536284,1724316633658,-543.9101318,0.00010789,2]
[335536285,1724316633667,-485.81941399,0.00010789,2]
[335536286,1724316633677,-527.24644136,0.00010789,2]
[335536287,1724316633686,-500.0,0.00010789,2]
[335536288,1724316633696,-502.7834391,0.00010789,2]
[335536289,1724316633707,-509.53296962,0.00010789,2]
[335536290,1724316633717,-511.89807339,0.00010789,2]
[335536291,1724316633726,-525.55228178,0.00010789,2]
[335536292,1724316633736,-508.36019354,0.00010789,2]
[335536293,1724316633746,-504.99057977,0.00010789,2]
[335536294,1724316633763,-500.0,0.00010789,2]
[335536295,1724316633775,-516.69135641,0.00010789,2]
[335536296,1724316633787,-516.60281457,0.00010789,2]
[335536297,1724316633797,-529.41361368,0.00010789,2]
[335536298,1724316633806,-513.77619856,0.00010789,2]
[335536299,1724316633817,-519.10412078,0.00010789,2]
[335536300,1724316633826,-510.07636386,0.00010789,2]
[335536301,1724316633835,-500.0,0.00010789,2]
[335536302,1724316633845,-518.93179044,0.00010789,2]
[335536303,1724316633855,-507.41416905,0.00010789,2]
[335536304,1724316633865,-521.45241238,0.00010789,2]
[335536305,1724316633874,-513.23837449,0.00010789,2]
[335536306,1724316633885,-522.29376895,0.00010789,2]
[335536307,1724316633895,-525.61767959,0.00010789,2]
[335536308,1724316633904,-520.32925844,0.00010789,2]
[335536309,1724316633914,-504.74428292,0.00010789,2]
[335536310,1724316633924,-526.93501009,0.00010789,2]
[335536311,1724316633934,-520.03512783,0.00010789,2]
[335536312,1724316633944,-511.67416363,0.00010789,2]
[335536313,1724316633954,-510.43668409,0.00010789,2]
[335536314,1724316633963,-525.71377124,0.00010789,2]
[335536315,1724316633973,-518.85350942,0.00010789,2]
[335536316,1724316633983,-511.1278783,0.00010789,2]
[335536317,1724316633993,-507.35069858,0.00010789,2]
[335536318,1724316634006,-509.20178241,0.00010789,2]
[335536319,1724316634015,-524.98519807,0.00010789,2]
[335536320,1724316634025,-519.35680362,0.00010789,2]
[335536321,1724316634035,-510.53621416,0.00010789,2]
[335536322,1724316634044,-601.40467528,0.00010789,2]
[335536323,1724316634053,-500.0,0.00010789,2]
[335536324,1724316634063,-507.01961507,0.00010789,2]
[335536325,1724316634072,-515.11067117,0.00010789,2]
[335536326,1724316634082,-634.59934842,0.00010789,2]
[335536327,1724316634091,-521.84768813,0.00010789,2]
[335536328,1724316634101,-511.68845578,0.00010789,2]
[335536329,1724316634110,-514.75021393,0.00010789,2]
[335536330,1724316634118,-506.3077352,0.00010789,2]
[335536331,1724316634127,-516.00034438,0.00010789,2]
[335536332,1724316634136,-513.32532752,0.00010789,2]
[335536333,1724316634146,-496.16735774,0.00010789,2]
[335536334,1724316634155,-513.7287017,0.00010789,2]
[335536335,1724316634164,-500.0,0.00010789,2]
[335536336,1724316634173,-563.95776592,0.00010789,2]
[335536337,1724316634182,-515.82837169,0.00010789,2]
[335536338,1724316634191,-500.0,0.00010789,2]
[335536339,1724316634201,-504.45006638,0.00010789,2]
[335536340,1724316634210,-500.0,0.00010789,2]
[335536341,1724316634219,-500.0,0.00010789,2]
[335536342,1724316634229,-518.68376066,0.00010789,2]
[335536343,1724316634238,-500.0,0.00010789,2]
[335536344,1724316634247,-511.45881077,0.00010789,2]
[335536345,1724316634257,-521.21138051,0.00010789,2]
[335536346,1724316634267,-500.0,0.00010789,2]
[335536347,1724316634276,-516.97406351,0.00010789,2]
[335536348,1724316634286,-509.17864741,0.00010789,2]
[335536349,1724316634295,-500.0,0.00010789,2]
[335536350,1724316634304,-518.73422177,0.00010789,2]
[335536351,1724316634314,-518.23109037,0.00010789,2]
[335536352,1724316634324,-500.0,0.00010789,2]
[335536353,1724316634333,-511.70963242,0.00010789,2]
[335536354,1724316634343,-500.0,0.00010789,2]
[335536355,1724316634352,-507.72457916,0.00010789,2]
[335536356,1724316634362,-500.0,0.00010789,2]
[335536357,1724316634371,-500.0,0.00010789,2]
[335536358,1724316634381,-500.0,0.00010789,2]
[335536359,1724316634390,-509.43231795,0.00010789,2]
[335536360,1724316634400,-500.0,0.00010789,2]
[335536361,1724316634409,-513.40193168,0.00010789,2]
[335536362,1724316634418,-500.0,0.00010789,2]
[335536363,1724316634428,-501.7335205,0.00010789,2]
[335536364,1724316634437,-506.18481191,0.00010789,2]
[335536365,1724316634447,-500.0,0.00010789,2]
[335536366,1724316634456,-515.26983726,0.00010789,2]
[335536367,1724316634465,-516.01523571,0.00010789,2]
[335536368,1724316634475,-500.0,0.00010789,2]
[335536369,1724316634484,-500.0,0.00010789,2]
[335536370,1724316634494,-500.0,0.00010789,2]
[335536371,1724316634504,-516.85679374,0.00010789,2]
[335536372,1724316634514,-533.5532177,0.00010789,2]
[335536373,1724316634524,-500.0,0.00010789,2]
[335536374,1724316634533,-517.53396444,0.00010789,2]
[335536375,1724316634543,-500.0,0.00010789,2]
[335536376,1724316634552,-508.51432194,0.00010789,2]
[335536377,1724316634561,-500.0,0.00010789,2]
[335536378,1724316634571,-523.80186411,0.00010789,2]
[335536379,1724316634580,-507.10420354,0.00010789,2]
[335536380,1724316634590,-500.0,0.00010789,2]
[335536381,1724316634599,-500.0,0.00010789,2]
[335536382,1724316634609,-521.32997449,0.00010789,2]
[335536383,1724316634618,-514.79083219,0.00010789,2]
[335536384,1724316634628,-500.0,0.00010789,2]
[335536385,1724316634638,-500.0,0.00010789,2]
[335536386,1724316634647,-517.0581456,0.00010789,2]
[335536387,1724316634657,-515.08754006,0.00010789,2]
[335536388,1724316634667,-500.0,0.00010789,2]
[335536389,1724316634678,-500.0,0.00010789,2]
[335536390,1724316634687,-505.8346709,0.00010789,2]
[335536391,1724316634697,-532.4111161,0.00010789,2]
[335536392,1724316634707,-503.48582222,0.00010789,2]
[335536393,1724316634718,-500.0,0.00010789,2]
[335536394,1724316634728,-500.0,0.00010789,2]
[335536395,1724316634737,-508.28370076,0.00010789,2]
[335536396,1724316634746,-500.0,0.00010789,2]
[335536397,1724316634757,-500.0,0.00010789,2]
[335536398,1724316634766,-523.45456175,0.00010789,2]
[335536399,1724316634775,-510.05000575,0.00010789,2]
[335536400,1724316634785,-506.56345061,0.00010789,2]
[335536401,1724316634795,-502.61425903,0.00010789,2]
[335536402,1724316634804,-500.0,0.00010789,2]
[335536403,1724316634813,-500.0,0.00010789,2]
[335536404,1724316634823,-538.49637268,0.00010789,2]
[335536405,1724316634832,-500.0,0.00010789,2]
[335536406,1724316634841,-500.0,0.00010789,2]
[335536407,1724316634850,-508.16418074,0.00010789,2]
[335536408,1724316634860,-500.0,0.00010789,2]
[335536409,1724316634870,-517.10700447,0.00010789,2]
[335536410,1724316634880,-500.0,0.00010789,2]
[335536411,1724316634890,-500.0,0.00010789,2]
[335536412,1724316634900,-508.82846745,0.00010789,2]
[335536413,1724316634911,-501.54090836,0.00010789,2]
[335536414,1724316634921,-500.0,0.00010789,2]
[335536415,1724316634931,-632.71115167,0.00010789,2]
[335536416,1724316634940,-500.0,0.00010789,2]
[335536417,1724316634949,-502.59679232,0.00010789,2]
[335536418,1724316634958,-500.0,0.00010789,2]
[335536419,1724316634968,-500.0,0.00010789,2]
[335536420,1724316634977,-500.0,0.00010789,2]
[335536421,1724316634987,-500.0,0.00010789,2]
[335536422,1724316634995,-500.0,0.00010789,2]
[335536423,1724316635005,-500.0,0.00010789,2]
[335536424,1724316635015,-500.0,0.00010789,2]
[335536425,1724316635024,-514.89583599,0.00010789,2]
[335536426,1724316635033,-500.0,0.00010789,2]
[335536427,1724316635042,-506.21455045,0.00010789,2]
[335536428,1724316635051,-500.0,0.00010789,2]
[335536429,1724316635060,-515.90578892,0.00010789,2]
[335536430,1724316635070,-500.0,0.00010789,2]
[335536431,1724316635079,-500.0,0.00010789,2]
[335536432,1724316635088,-500.0,0.00010789,2]
[335536433,1724316635098,-510.26132789,0.00010789,2]
[335536434,1724316635106,-500.0,0.00010789,2]
[335536435,1724316635116,-536.03458175,0.00010789,2]
[335536436,1724316635125,-500.0,0.00010789,2]
[335536437,1724316635134,-500.0,0.00010789,2]
[335536438,1724316635143,-500.0,0.00010789,2]
[335536439,1724316635152,-500.0,0.00010789,2]
[335536440,1724316635161,-500.0,0.00010789,2]
[335536441,1724316635170,-500.0,0.00010789,2]
[335536442,1724316635179,-560.40617989,0.00010789,2]
[335536443,1724316635188,-500.0,0.00010789,2]
[335536444,1724316635197,-521.35127848,0.00010789,2]
[335536445,1724316635207,-500.0,0.00010789,2]
[335536446,1724316635216,-513.73293286,0.00010789,2]
[335536447,1724316635225,-500.0,0.00010789,2]
[335536448,1724316635235,-500.0,0.00010789,2]
[335536449,1724316635244,-500.0,0.00010789,2]
[335536450,1724316635255,-500.0,0.00010789,2]
[335536451,1724316635264,-500.0,0.00010789,2]
[335536452,1724316635273,-500.0,0.00010789,2]
[335536453,1724316635283,-522.68826095,0.00010789,2]
[335536454,1724316635292,-500.0,0.00010789,2]
[335536455,1724316635302,-517.93095863,0.00010789,2]
[335536456,1724316635311,-500.0,0.00010789,2]
[335536457,1724316635320,-509.79075443,0.00010789,2]
[335536458,1724316635330,-500.0,0.00010789,2]
[335536459,1724316635339,-513.92366937,0.00010789,2]
[335536460,1724316635348,-500.0,0.00010789,2]
[335536461,1724316635474,-514.71877533,0.00010789,2]
[335536462,1724316635499,-500.0,0.00010789,2]
[335536463,1724316635539,-500.0,0.00010789,2]
[335536464,1724316635579,-500.0,0.00010789,2]
[335536465,1724316635621,-500.0,0.00010789,2]
[335536466,1724316635635,-500.0,0.00010789,2]
[335536467,1724316635645,-500.0,0.00010789,2]
[335536468,1724316635655,-500.0,0.00010789,2]
[335536469,1724316635664,-500.0,0.00010789,2]
[335536470,1724316635674,-452.43,0.00010789,2]
[335536471,1724316635683,-500.0,0.00010789,2]
[335536472,1724316635693,-523.21313607,0.00010789,2]
[335536473,1724316635703,-500.0,0.00010789,2]
[335536474,1724316635716,-549.29736711,0.00010789,2]
[335536475,1724316635726,-500.0,0.00010789,2]
[335536476,1724316635735,-505.11598583,0.00010789,2]
[335536477,1724316635745,-500.0,0.00010789,2]
[335536478,1724316635755,-506.59362464,0.00010789,2]
[335536479,1724316635764,-500.0,0.00010789,2]
[335536480,1724316635773,-542.29090274,0.00010789,2]
[335536481,1724316635783,-500.0,0.00010789,2]
[335536482,1724316635793,-500.0,0.00010789,2]
[335536483,1724316635804,-500.0,0.00010789,2]
[335536484,1724316635815,-509.1439349,0.00010789,2]
[335536485,1724316635824,-515.37966712,0.00010789,2]
[335536486,1724316635833,-400.37053991,0.00010789,2]
[335536487,1724316635852,-99.62946009,0.00010789,2]
[335536488,1724316635861,-533.96306611,0.00010789,2]
[335536489,1724316635872,-500.0,0.00010789,2]
[335536490,1724316635881,-504.49253664,0.00010789,2]
[335536491,1724316635891,-500.0,0.00010789,2]
[335536492,1724316635900,-465.98701001,0.00010789,2]
[335536493,1724316635914,-34.01298999,0.00010789,2]
[335536494,1724316635923,-500.0,0.00010789,2]
[335536495,1724316635932,-500.0,0.00010789,2]
[335536496,1724316635941,-127.33958625,0.00010789,2]
[335536497,1724316635952,-377.02729792,0.00010789,2]
[335536498,1724316635962,-500.0,0.00010789,2]
[335536499,1724316635972,-500.0,0.00010789,2]
[335536500,1724316635981,-500.0,0.00010789,2]
[335536501,1724316635990,-519.40627773,0.00010789,2]
[335536502,1724316635999,-500.0,0.00010789,2]
[335536503,1724316636009,-528.55373758,0.00010789,2]
[335536504,1724316636021,-27.06028061,0.00010789,2]
[335536505,1724316636030,-500.0,0.00010789,2]
[335536506,1724316636039,-251.57356634,0.00010789,2]
[335536513,1724316637982,-995.36520928,0.00010713,2]
[335536514,1724316637994,-1028.52477935,0.00010713,2]
[335536515,1724316638006,-364.08523458,0.00010713,2]
[335536516,1724316638015,-263.97084715,0.00010789,2]
[335536517,1724316638025,-38.71676163,0.00010789,2]
[335536518,1724316638037,-468.5988446,0.00010789,2]
[335536519,1724316638047,-505.26549415,0.00010789,2]
[335536520,1724316638057,-500.0,0.00010789,2]
[335536521,1724316638069,-640.00195407,0.00010789,2]
[335536522,1724316638079,-500.0,0.00010789,2]
[335536523,1724316638088,-500.0,0.00010789,2]
[335536524,1724316638097,-500.0,0.00010789,2]
[335536525,1724316638107,-506.185081,0.00010789,2]
[335536526,1724316638115,-500.0,0.00010789,2]
[335536527,1724316638125,-507.91679043,0.00010789,2]
[335536528,1724316638134,-500.0,0.00010789,2]
[335536529,1724316638144,-205.43485824,0.00010789,2]
[335536530,1724316638153,-517.3562038,0.00010789,2]
[335536531,1724316638162,-500.0,0.00010789,2]
[335536532,1724316638171,-513.26780766,0.00010789,2]
[335536533,1724316638182,-524.51821293,0.00010789,2]
[335536534,1724316638192,-463.15454907,0.00010789,2]
[335536535,1724316638202,-438.29875796,0.00010789,2]
[335536536,1724316638212,-500.0,0.00010789,2]
[335536537,1724316638221,-500.0,0.00010789,2]
[335536538,1724316638230,-500.0,0.00010789,2]
[335536539,1724316638240,-500.0,0.00010789,2]
[335536540,1724316638249,-500.0,0.00010789,2]
[335536541,1724316638259,-264.31116074,0.00010789,2]
[335536542,1724316638271,-265.2696643,0.00010789,2]
[335536543,1724316638286,-38.83282716,0.00010789,2]
[335536544,1724316638296,-444.1618057,0.00010789,2]
[335536545,1724316638307,-55.8381943,0.00010789,2]
[335536546,1724316638316,-319.27762493,0.00010789,2]
[335536547,1724316638327,-180.72237507,0.00010789,2]
[335536549,1724316638336,-521.07143477,0.00010789,2]
[335536551,1724316638345,-4159.97519846,0.0001079,3]
[335536558,1724316638428,-77803.79000008,0.0001079,3]
[335536559,1724316638439,-526.17759152,0.0001079,3]
[335536560,1724316638452,-2607.53388084,0.0001079,3]
[335536561,1724316638463,-932.0,0.0001079,3]
[335536562,1724316638474,-1384218.04476598,0.0001079,3]
[335536563,1724316638484,-247.52917822,0.0001079,2]
[335536564,1724316638493,-6613.9352227,0.00010793,2]
[335536565,1724316638502,-1918.508054,0.00010793,2]
[335536566,1724316638512,-20244.0472375,0.00010793,2]
[335536567,1724316638521,-500.0,0.00010794,2]
[335536568,1724316638531,-617.57,0.00010794,2]
[335536569,1724316638540,-500.0,0.00010794,2]
[335536570,1724316638550,-500.0,0.00010794,2]
[335536571,1724316638559,-517.50433491,0.00010794,2]
[335536572,1724316638569,-413.58751093,0.00010794,2]
[335536573,1724316638579,-195.867,0.00010794,2]
[335536574,1724316638588,-154448.0,0.00010795,2]
[335536575,1724316638598,-500.0,0.00010798,2]
[335536576,1724316638607,-500.0,0.00010798,2]
[335536577,1724316638616,-500.0,0.00010798,2]
[335536578,1724316638625,-500.0,0.00010798,2]
[335536579,1724316638634,-500.0,0.00010798,2]
[335536580,1724316638644,-500.0,0.00010798,2]
[335536581,1724316638652,-500.0,0.00010798,2]
[335536582,1724316638662,-500.0,0.00010798,2]
[335536583,1724316638671,-534.41706292,0.00010798,2]
[335536584,1724316638680,-500.0,0.00010798,2]
[335536585,1724316638689,-500.0,0.00010798,2]
[335536586,1724316638699,-500.0,0.00010798,2]
[335536587,1724316638709,-500.0,0.00010798,2]
[335536588,1724316638719,-500.0,0.00010798,2]
[335536589,1724316638728,-500.0,0.00010798,2]
[335536590,1724316638738,-500.0,0.00010798,2]
[335536591,1724316638747,-500.0,0.00010798,2]
[335536592,1724316638757,-500.0,0.00010798,2]
[335536593,1724316638766,-500.0,0.00010798,2]
[335536594,1724316638775,-500.0,0.00010798,2]
[335536595,1724316638786,-500.0,0.00010798,2]
[335536596,1724316638795,-500.0,0.00010798,2]
[335536597,1724316638803,-551.57,0.00010798,2]
[335536598,1724316638812,-500.0,0.00010798,2]
[335536599,1724316638821,-544.44774196,0.00010798,2]
[335536600,1724316638832,-500.0,0.00010798,2]
[335536601,1724316638840,-500.0,0.00010798,2]
[335536602,1724316638849,-500.0,0.00010798,2]
[335536603,1724316638858,-500.0,0.00010798,2]
[335536604,1724316638867,-500.0,0.00010798,2]
[335536605,1724316638876,-500.0,0.00010798,2]
[335536606,1724316638886,-500.0,0.00010798,2]
[335536607,1724316638897,-500.0,0.00010798,2]
[335536608,1724316638907,-500.0,0.00010798,2]
[335536609,1724316638916,-500.0,0.00010798,2]
[335536610,1724316638926,-500.0,0.00010798,2]
[335536611,1724316638935,-558.87782328,0.00010798,2]
[335536612,1724316638945,-500.0,0.00010798,2]
[335536613,1724316638955,-500.0,0.00010798,2]
[335536614,1724316638964,-500.0,0.00010798,2]
[335536615,1724316638974,-500.0,0.00010798,2]
[335536616,1724316638983,-500.0,0.00010798,2]
[335536617,1724316638992,-500.0,0.00010798,2]
[335536618,1724316639001,-500.0,0.00010798,2]
[335536619,1724316639011,-500.0,0.00010798,2]
[335536620,1724316639020,-500.0,0.00010798,2]
[335536621,1724316639030,-500.0,0.00010798,2]
[335536622,1724316639039,-500.0,0.00010798,2]
[335536623,1724316639048,-500.0,0.00010798,2]
[335536624,1724316639058,-500.0,0.00010798,2]
[335536625,1724316639067,-578.0,0.00010798,2]
[335536626,1724316639076,-500.0,0.00010798,2]
[335536627,1724316639086,-500.0,0.00010798,2]
[335536628,1724316639095,-500.0,0.00010798,2]
[335536629,1724316639104,-500.0,0.00010798,2]
[335536630,1724316639114,-500.0,0.00010798,2]
[335536631,1724316639123,-500.0,0.00010798,2]
[335536632,1724316639132,-500.0,0.00010798,2]
[335536634,1724316639142,-500.0,0.00010798,2]
[335536636,1724316639151,-500.0,0.00010798,2]
[335536638,1724316639160,-500.0,0.00010798,2]
[335536640,1724316639169,-500.0,0.00010798,2]
[335536642,1724316639178,-500.0,0.00010798,2]
[335536644,1724316639188,-500.0,0.00010798,2]
[335536646,1724316639197,-500.0,0.00010798,2]
[335536648,1724316639206,-500.0,0.00010798,2]
[335536650,1724316639215,-500.0,0.00010798,2]
[335536652,1724316639224,-25417.391877,0.00010798,2]
[335536654,1724316639234,-500.0,0.00010798,2]
[335536656,1724316639244,-25417.391877,0.00010798,2]
[335536658,1724316639252,-500.0,0.00010798,2]
[335536660,1724316639262,-19411.378212,0.00010798,2]
[335536662,1724316639271,-19411.378212,0.00010798,2]
[335536664,1724316639280,-500.0,0.00010798,2]
[335536666,1724316639290,-500.0,0.00010798,2]
[335536668,1724316639300,-549.96,0.00010798,2]
[335536670,1724316639309,-549.96,0.00010798,2]
[335536672,1724316639318,-500.0,0.00010798,2]
[335536674,1724316639328,-500.0,0.00010798,2]
[335536676,1724316639338,-500.0,0.00010798,2]
[335536678,1724316639347,-544.45155133,0.00010798,2]
[335536680,1724316639356,-500.0,0.00010798,2]
[335536682,1724316639366,-500.0,0.00010798,2]
[335536684,1724316639375,-500.0,0.00010798,2]
[335536686,1724316639384,-500.0,0.00010798,2]
[335536688,1724316639394,-500.0,0.00010798,2]
[335536690,1724316639403,-500.0,0.00010798,2]
[335536692,1724316639412,-500.0,0.00010798,2]
[335536694,1724316639421,-500.0,0.00010798,2]
[335536696,1724316639431,-500.0,0.00010798,2]
[335536698,1724316639441,-500.0,0.00010798,2]
[335536700,1724316639450,-3666.794821,0.00010798,2]
[335536702,1724316639459,-3666.794821,0.00010798,2]
[335536704,1724316639468,-500.0,0.00010798,2]
[335536706,1724316639477,-500.0,0.00010798,2]
[335536708,1724316639487,-500.0,0.00010798,2]
[335536710,1724316639496,-500.0,0.00010798,2]
[335536712,1724316639505,-500.0,0.00010798,2]
[335536714,1724316639514,-500.0,0.00010798,2]
[335536716,1724316639523,-500.0,0.00010798,2]
[335536718,1724316639532,-500.0,0.00010798,2]
[335536720,1724316639540,-500.0,0.00010798,2]
[335536722,1724316639549,-500.0,0.00010798,2]
[335536724,1724316639558,-736.382025,0.00010798,2]
[335536725,1724316639567,-736.382025,0.00010798,2]
[335536728,1724316639577,-387.754145,0.00010798,2]
[335536729,1724316639586,-387.754145,0.00010798,2]
[335536731,1724316639595,-500.0,0.00010798,2]
[335536733,1724316639604,-500.0,0.00010798,2]
[335536735,1724316639613,-500.0,0.00010798,2]
[335536737,1724316639623,-500.0,0.00010798,2]
[335536739,1724316639632,-500.0,0.00010798,2]
[335536741,1724316639641,-500.0,0.00010798,2]
[335536743,1724316639651,-500.0,0.00010798,2]
[335536745,1724316639660,-500.0,0.00010798,2]
[335536748,1724316639669,-500.0,0.00010798,2]
[335536750,1724316639679,-500.0,0.00010798,2]
[335536752,1724316639688,-500.0,0.00010798,2]
[335536754,1724316639699,-500.0,0.00010798,2]
[335536756,1724316639710,-500.0,0.00010798,2]
[335536758,1724316639721,-500.0,0.00010798,2]
[335536760,1724316639730,-500.0,0.00010798,2]
[335536762,1724316639739,-500.0,0.00010798,2]
[335536764,1724316639748,-500.0,0.00010798,2]
[335536766,1724316639758,-500.0,0.00010798,2]
[335536780,1724316639879,-500.0,0.00010798,2]
[335536782,1724316639889,-500.0,0.00010798,2]
[335536785,1724316639901,-500.0,0.00010798,2]
[335536787,1724316639910,-500.0,0.00010798,2]
[335536789,1724316639920,-507.0696623,0.00010798,2]
[335536791,1724316639929,-500.0,0.00010798,2]
[335536793,1724316639938,-500.0,0.00010798,2]
[335536795,1724316639948,-500.0,0.00010798,2]
[335536797,1724316639958,-500.0,0.00010798,2]
[335536799,1724316639968,-500.0,0.00010798,2]
[335536801,1724316639977,-500.0,0.00010798,2]
[335536803,1724316639987,-500.0,0.00010798,2]
[335536806,1724316639997,-500.0,0.00010798,2]
[335536808,1724316640007,-500.0,0.00010798,2]
[335536810,1724316640016,-500.0,0.00010798,2]
[335536812,1724316640026,-500.0,0.00010798,2]
[335536814,1724316640036,-500.0,0.00010798,2]
[335536816,1724316640046,-506.80297295,0.00010798,2]
[335536818,1724316640056,-500.0,0.00010798,2]
[335536820,1724316640065,-500.0,0.00010798,2]
[335536822,1724316640075,-500.0,0.00010798,2]
[335536824,1724316640085,-1098.62,0.00010798,2]
[335536826,1724316640095,-1098.62,0.00010798,2]
[335536828,1724316640104,-1098.62,0.00010798,2]
[335536830,1724316640115,-1098.62,0.00010798,2]
[335536832,1724316640124,-500.0,0.00010798,2]
[335536834,1724316640133,-500.0,0.00010798,2]
[335536836,1724316640143,-500.0,0.00010798,2]
[335536838,1724316640152,-500.0,0.00010798,2]
[335536840,1724316640162,-500.0,0.00010798,2]
[335536842,1724316640172,-500.0,0.00010798,2]
[335536844,1724316640181,-500.0,0.00010798,2]
[335536846,1724316640191,-500.0,0.00010798,2]
[335536848,1724316640200,-500.0,0.00010798,2]
[335536850,1724316640210,-500.0,0.00010798,2]
[335536852,1724316640219,-500.0,0.00010798,2]
[335536854,1724316640228,-500.0,0.00010798,2]
[335536856,1724316640237,-500.0,0.00010798,2]
[335536858,1724316640247,-500.0,0.00010798,2]
[335536860,1724316640257,-500.0,0.00010798,2]
[335536862,1724316640274,-500.0,0.00010798,2]
[335536864,1724316640283,-500.0,0.00010798,2]
[335536866,1724316640293,-500.0,0.00010798,2]
[335536868,1724316640302,-519.19451252,0.00010798,2]
[335536871,1724316640313,-500.0,0.00010798,2]
[335536873,1724316640322,-500.0,0.00010798,2]
[335536875,1724316640331,-349.2,0.00010798,2]
[335536876,1724316640340,-500.0,0.00010798,2]
[335536879,1724316640350,-516.4173318,0.00010798,2]
[335536881,1724316640359,-500.0,0.00010798,2]
[335536882,1724316640368,-500.0,0.00010798,2]
[335536885,1724316640377,-500.0,0.00010798,2]
[335536887,1724316640386,-500.0,0.00010798,2]
[335536889,1724316640396,-511.69143864,0.00010798,2]
[335536891,1724316640406,-500.0,0.00010798,2]
[335536893,1724316640415,-500.0,0.00010798,2]
[335536895,1724316640425,-750.6,0.00010798,2]
[335536897,1724316640435,-500.0,0.00010798,2]
[335536899,1724316640446,-750.6,0.00010798,2]
[335536901,1724316640455,-500.0,0.00010798,2]
[335536903,1724316640464,-500.0,0.00010798,2]
[335536905,1724316640473,-750.6,0.00010798,2]
[335536907,1724316640483,-500.0,0.00010798,2]
[335536909,1724316640492,-750.6,0.00010798,2]
[335536911,1724316640501,-610.4,0.00010798,2]
[335536913,1724316640517,-500.0,0.00010798,2]
[335536915,1724316640527,-500.0,0.00010798,2]
[335536917,1724316640536,-500.0,0.00010798,2]
[335536919,1724316640546,-500.0,0.00010798,2]
[335536921,1724316640555,-500.0,0.00010798,2]
[335536923,1724316640565,-500.0,0.00010798,2]
[335536925,1724316640574,-500.0,0.00010798,2]
[335536927,1724316640583,-500.0,0.00010798,2]
[335536929,1724316640592,-500.0,0.00010798,2]
[335536931,1724316640601,-500.0,0.00010798,2]
[335536933,1724316640610,-500.0,0.00010798,2]
[335536935,1724316640620,-1131.89,0.00010798,2]
[335536937,1724316640629,-464.02,0.00010798,2]
[335536939,1724316640638,-1131.89,0.00010798,2]
[335536941,1724316640648,-1131.89,0.00010798,2]
[335536943,1724316640657,-1131.89,0.00010798,2]